bitfinex-derivatives/quotes_ETHF0:USTF0_20250115
["timestamp","ask_amount","ask_price","bid_price","bid_amount"]
[1736961056881,0.59803,3344.2,3344.1,0.59801]
[1736961057079,0.59796,3344.6,3344.5,0.59795]
[1736961057270,0.59797,3344.5,3344.4,0.59796]
[1736961057978,2.91961,3345.2,3344.1,0.7817]
[1736961058179,0.59794,3344.7,3344.6,0.59793]
[1736961058881,3.2078,3344.8,3344.1,3.00526]
[1736961059180,3.80572,3344.8,3344.7,0.59793]
[1736961059983,3.80571,3344.8,3344.7,0.59793]
[1736961060780,3.80572,3344.8,3344.7,0.59793]
[1736961061578,0.59788,3345.0,3344.9,0.59789]
[1736961063483,0.59791,3344.9,3344.8,0.5979]
[1736961064575,1.425,3345.2,3344.7,42.87742]
[1736961064576,0.59791,3344.8,3344.7,42.87742]
[1736961064773,0.59791,3344.8,3344.7,42.14962]
[1736961065175,3.2078,3344.9,3344.5,1.301]
[1736961065377,0.59794,3344.6,3344.5,0.59795]
[1736961065578,0.59798,3344.5,3344.4,0.59796]
[1736961065776,0.598,3344.3,3344.2,2.7751]
[1736961065975,0.59805,3344.1,3344.0,0.59804]
[1736961066577,0.59805,3344.0,3343.9,0.59806]
[1736961066777,0.59808,3343.9,3343.8,0.59806]
[1736961066978,1.495,3344.3,3344.0,0.59803]
[1736961066979,0.59804,3344.1,3344.0,0.59803]
[1736961067487,3.42268262,3344.3,3343.7,2.03]
[1736961067789,0.59802,3344.2,3344.1,0.59802]
[1736961067977,0.59807,3344.0,3343.9,0.59806]
[1736961068178,0.59815,3343.5,3343.4,0.59814]
[1736961068383,0.59816,3343.4,3343.3,1.301]
[1736961068583,0.59816,3343.4,3343.3,1.89918]
[1736961068778,3.2078,3343.6,3343.1,1.5024]
[1736961069080,3.2078,3343.6,3342.9,41.581]
[1736961069081,0.59818,3343.3,3343.2,0.59818]
[1736961069277,3.14044001,3343.5,3342.9,45.3088]
[1736961069478,3.2078,3343.6,3343.5,0.59814]
[1736961069879,2.2149,3343.7,3343.6,0.59812]
[1736961071279,0.7436,3343.7,3343.6,0.59812]
[1736961071887,0.7436,3343.7,3343.3,3.03612]
[1736961072083,0.7436,3343.7,3343.6,0.59812]
[1736961072785,0.7739,3344.1,3343.3,3.03612]
[1736961072786,0.59808,3343.9,3343.8,0.59809]
[1736961073087,0.7739,3344.1,3343.3,1.5407]
[1736961073088,1.31836,3344.0,3343.9,0.59805]
[1736961073390,0.7203,3344.0,3343.9,0.59805]
[1736961073692,1.31835,3344.0,3343.9,0.59805]
[1736961074189,0.7203,3344.0,3343.9,0.59805]
[1736961074396,3.2078,3344.6,3344.4,0.59797]
[1736961074686,4.52604,3344.6,3344.5,0.59796]
[1736961074881,3.9281,3344.6,3344.5,0.59796]
[1736961075088,0.778,3344.9,3344.8,0.59791]
[1736961075289,0.7203,3345.0,3344.9,0.59789]
[1736961075786,4.7669,3345.4,3345.3,0.59782]
[1736961076477,1.5591,3345.4,3345.3,0.59782]
[1736961076680,0.7415,3345.7,3345.6,0.59777]
[1736961078484,3.9493,3345.7,3345.6,0.59777]
[1736961079087,0.7415,3345.7,3345.6,0.59777]
[1736961079583,3.9493,3345.7,3345.6,0.59777]
[1736961080490,0.7415,3345.7,3345.6,0.59777]
[1736961081790,0.7415,3345.7,3345.1,3.2078]
[1736961081791,3.9493,3345.7,3345.1,3.2078]
[1736961082092,0.59778,3345.6,3345.5,0.59778]
[1736961082290,0.59778,3345.6,3344.9,1.301]
[1736961082591,0.59778,3345.5,3345.3,0.59781]
[1736961082791,3.23602351,3345.6,3345.3,0.59781]
[1736961083092,0.5978,3345.4,3345.3,0.59781]
[1736961083689,3.23602351,3345.6,3344.7,0.7574]
[1736961083690,5.5032395,3345.6,3344.7,0.7574]
[1736961083890,0.59791,3344.8,3344.1,6.00385]
[1736961084093,0.7622,3344.7,3344.6,0.59794]
[1736961084284,1.4769,3345.3,3345.1,0.59784]
[1736961084488,0.59784,3345.2,3345.1,0.59784]
[1736961084682,1.4769,3345.3,3345.2,0.59784]
[1736961085195,0.7622,3345.4,3344.8,1.49478]
[1736961085495,3.80551,3345.9,3345.8,0.59773]
[1736961086090,3.2078,3345.9,3345.8,0.59773]
[1736961086292,3.80551,3345.9,3345.8,0.59773]
[1736961086492,0.59771,3345.9,3345.8,0.59773]
[1736961087593,0.59773,3345.9,3345.7,0.59773]
[1736961087793,0.59771,3345.9,3345.7,0.59773]
[1736961087993,0.59773,3345.8,3345.7,0.59773]
[1736961088194,0.59782,3345.3,3345.2,0.59782]
[1736961088394,0.59783,3345.3,3345.2,0.59783]
[1736961088698,0.59781,3345.4,3345.3,0.59781]
[1736961088897,1.35981,3345.4,3345.3,0.59781]
[1736961089089,4.71509167,3345.4,3345.3,0.59781]
[1736961089591,5.44849167,3345.4,3345.3,0.59781]
[1736961090291,0.59783,3345.3,3345.2,0.59783]
[1736961091499,0.59782,3345.3,3345.2,0.59783]
[1736961091800,0.59782,3345.3,3344.9,3.2078]
[1736961091801,8.05848167,3345.4,3345.0,0.59787]
[1736961091995,0.59787,3345.1,3345.0,0.59787]
[1736961092502,0.59788,3345.0,3344.9,0.59788]
[1736961092794,0.59786,3345.1,3345.0,0.59786]
[1736961093998,0.59786,3345.1,3344.6,1.5327]
[1736961093999,2.26721599,3345.2,3344.6,1.5327]
[1736961094195,0.59796,3344.6,3344.5,0.59796]
[1736961094502,0.59796,3344.6,3344.3,0.59799]
[1736961094503,0.59799,3344.4,3344.3,0.59799]
[1736961094695,5.05270595,3344.6,3344.1,3.9859]
[1736961094996,5.05270595,3344.6,3344.3,0.59799]
[1736961094997,4.02025244,3344.4,3344.3,0.59799]
[1736961095192,3.90773558,3344.5,3344.4,0.59797]
[1736961095595,0.59798,3344.5,3344.4,0.59797]
[1736961095795,3.90773558,3344.5,3344.4,0.59797]
[1736961096195,1.4779,3344.7,3344.4,0.59797]
[1736961096498,0.59796,3344.5,3344.4,0.59797]
[1736961096893,3.11792706,3344.6,3344.5,0.59796]
[1736961097197,0.7343,3345.2,3345.1,0.59785]
[1736961097495,1.33214,3345.2,3345.1,0.59785]
[1736961098096,0.59784,3345.2,3345.1,0.59785]
[1736961098497,3.2078,3345.3,3345.2,0.59784]
[1736961101415,0.5978,3345.4,3344.8,4.49975599]
[1736961101704,0.59783,3345.3,3345.2,0.59782]
[1736961102303,3.87298622,3345.6,3344.8,0.7378]
[1736961102502,2.26721599,3345.1,3344.3,1.49498]
[1736961102702,0.59792,3344.8,3344.7,0.59791]
[1736961103303,0.59791,3344.9,3344.8,0.59789]
[1736961103507,0.59793,3344.8,3344.7,0.59792]
[1736961104405,0.5979,3344.9,3344.8,0.59789]
[1736961104910,3.12748622,3345.0,3344.9,0.59789]
[1736961105104,0.59786,3345.1,3345.0,0.59787]
[1736961105704,3.2078,3345.3,3344.6,1.49484]
[1736961105906,0.59785,3345.2,3345.1,0.59784]
[1736961107511,3.2078,3345.3,3344.8,0.7762]
[1736961107711,0.59785,3345.2,3345.1,0.59784]
[1736961108015,3.80563,3345.3,3345.2,0.59784]
[1736961108209,4.57403,3345.3,3345.2,0.59784]
[1736961108605,0.59787,3345.1,3345.0,0.59785]
[1736961109014,3.9762,3345.3,3344.8,0.7762]
[1736961109310,0.59785,3345.2,3345.1,0.59784]
[1736961109913,4.57403,3345.3,3345.2,0.59784]
[1736961110306,3.2078,3345.3,3345.2,0.59784]
[1736961111714,0.59779,3345.5,3345.4,0.5978]
[1736961112012,4.01451822,3345.5,3345.4,0.5978]
[1736961112713,7.22231822,3345.5,3345.4,0.5978]
[1736961112910,0.59784,3345.3,3345.2,0.59781]
[1736961113117,6.62452822,3345.5,3345.0,1.299]
[1736961113308,0.59781,3345.4,3345.3,0.5978]
[1736961115112,7.22231822,3345.5,3345.4,0.5978]
[1736961115314,7.71156626,3345.5,3345.4,0.5978]
[1736961116115,0.59784,3345.3,3345.2,0.59781]
[1736961117011,3.2078,3345.5,3345.4,0.5978]
[1736961117316,11.01171414,3346.0,3345.9,0.59771]
[1736961117614,10.41401414,3346.0,3345.9,0.59771]
[1736961118514,0.59766,3346.2,3345.8,5.47501599]
[1736961118709,0.59766,3346.2,3346.1,0.59768]
[1736961119110,1.37081,3346.5,3346.4,0.59762]
[1736961119309,0.59761,3346.5,3346.4,0.59762]
[1736961119513,9.85450146,3346.6,3346.5,0.5976]
[1736961119808,3.24612625,3346.5,3346.4,0.59761]
[1736961120208,9.25690146,3346.6,3346.5,0.5976]
[1736961120617,3.85950146,3346.6,3346.5,3.8054]
[1736961120812,9.285244,3347.1,3347.0,0.59752]
[1736961121114,9.285244,3347.1,3347.0,7.37153599]
[1736961121307,11.57112683,3347.5,3347.4,0.59744]
[1736961121508,0.59737,3347.9,3347.7,0.59738]
[1736961121705,1.5186,3348.0,3347.9,0.59735]
[1736961121911,0.59735,3347.9,3347.8,0.59737]
[1736961122117,3.98316514,3347.9,3347.8,0.59737]
[1736961122812,3.38581514,3347.9,3347.4,3.2078]
[1736961123014,3.38581514,3347.9,3347.5,0.59743]
[1736961123314,0.5974,3347.7,3347.5,0.59743]
[1736961124109,0.5974,3347.7,3347.4,3.2078]
[1736961124311,0.5974,3347.7,3347.5,0.59741]
[1736961125812,0.59741,3347.6,3347.5,0.59741]
[1736961126007,0.59739,3347.7,3347.5,0.59741]
[1736961126218,0.59738,3347.8,3347.6,0.5974]
[1736961127015,3.38581514,3347.9,3347.4,3.2078]
[1736961127216,0.5974,3347.7,3347.5,0.59742]
[1736961127412,0.59739,3347.7,3347.5,0.59742]
[1736961127614,3.38581514,3347.9,3347.4,3.2078]
[1736961127821,0.59737,3347.8,3347.4,3.2078]
[1736961128020,0.59737,3347.8,3347.7,0.59739]
[1736961128214,3.38581514,3347.9,3347.4,3.2078]
[1736961128413,3.38581514,3347.9,3347.8,0.59737]
[1736961128914,3.38581514,3347.9,3347.4,3.2078]
[1736961129111,3.98317514,3347.9,3347.4,3.2078]
[1736961129410,3.38581514,3347.9,3347.8,0.59737]
[1736961129612,1.5186,3348.0,3347.9,0.59735]
[1736961130013,0.59737,3347.8,3347.7,1.297]
[1736961132419,0.59737,3347.8,3347.7,1.89439]
[1736961132713,0.59737,3347.8,3347.7,1.297]
[1736961133309,0.59737,3347.8,3347.7,1.89439]
[1736961133512,0.59737,3347.8,3347.7,1.297]
[1736961134023,3.2078,3347.9,3347.8,0.59737]
[1736961134209,0.59735,3347.9,3347.8,0.59737]
[1736961134413,0.7454,3348.6,3347.8,3.2078]
[1736961134614,0.59728,3348.4,3348.3,0.59728]
[1736961134810,0.59729,3348.3,3348.2,0.59729]
[1736961135019,0.59728,3348.4,3348.3,0.59728]
[1736961135421,0.7533,3348.5,3347.8,3.2078]
[1736961135613,0.59734,3348.0,3347.9,0.59735]
[1736961135922,0.59733,3348.1,3348.0,0.59733]
[1736961136425,3.2078,3348.3,3347.7,1.297]
[1736961136624,0.59733,3348.1,3348.0,0.59733]
[1736961136921,0.59729,3348.3,3348.2,0.59728]
[1736961137617,0.7533,3348.5,3347.8,4.70124]
[1736961137823,0.5973,3348.3,3348.2,0.59729]
[1736961138619,0.59728,3348.4,3348.3,0.59727]
[1736961138814,0.59727,3348.4,3348.3,0.59728]
[1736961139616,0.7533,3348.5,3347.8,4.70124]
[1736961139817,0.59731,3348.2,3348.1,0.59731]
[1736961140218,0.59729,3348.3,3348.2,0.59729]
[1736961141124,3.2078,3348.4,3347.8,4.70124]
[1736961141317,0.59729,3348.3,3348.2,0.59729]
[1736961142424,0.7533,3348.5,3347.8,4.70124]
[1736961142612,1.35056,3348.5,3348.4,0.59727]
[1736961143325,0.5973,3348.3,3348.2,0.59729]
[1736961143512,0.5973,3348.3,3348.2,0.59728]
[1736961146127,0.59733,3348.1,3348.0,0.59732]
[1736961146925,0.59736,3348.0,3347.9,0.59734]
[1736961147222,1.26626,3348.0,3347.9,0.59734]
[1736961147929,0.6689,3348.0,3347.9,0.59734]
[1736961148228,1.26624,3348.0,3347.9,0.59734]
[1736961148823,0.6689,3348.0,3347.6,2.26187333]
[1736961149032,0.59739,3347.7,3347.6,0.5974]
[1736961149228,0.7731,3347.9,3347.5,1.297]
[1736961149417,1.37491,3347.6,3347.5,1.297]
[1736961149622,1.37491,3347.6,3347.1,2.26187333]
[1736961149623,0.7775,3347.6,3347.1,2.26187333]
[1736961149923,0.7775,3347.6,3347.1,3.55887333]
[1736961150227,0.59746,3347.4,3347.3,0.59744]
[1736961150525,0.59748,3347.2,3347.1,0.59749]
[1736961150731,0.5975,3347.2,3347.1,0.59748]
[1736961151031,3.75534333,3347.8,3347.1,0.59748]
[1736961151032,0.59731,3348.2,3348.1,0.59729]
[1736961151228,1.5549,3348.7,3348.1,2.26187333]
[1736961151530,0.6615,3348.6,3348.5,0.59725]
[1736961151731,1.25873,3348.6,3348.5,0.59725]
[1736961152828,0.59726,3348.5,3348.4,0.59725]
[1736961153420,1.25873,3348.6,3348.5,0.59725]
[1736961153730,0.6615,3348.6,3348.5,0.59725]
[1736961154124,1.25873,3348.6,3348.5,0.59725]
[1736961154518,0.6615,3348.6,3348.5,0.59725]
[1736961154823,0.7775,3348.7,3348.4,2.26187333]
[1736961155020,0.7775,3348.7,3348.6,0.59723]
[1736961155322,0.7775,3348.7,3348.6,1.89223]
[1736961156231,0.7775,3348.7,3348.6,42.69223]
[1736961157930,4.5887,3349.2,3348.6,43.58804]
[1736961158129,1.37635,3349.1,3349.0,0.59715]
[1736961158332,0.59716,3349.0,3348.9,0.59717]
[1736961160138,0.5972,3348.9,3348.8,0.59718]
[1736961160937,0.7792,3349.1,3348.6,3.55687333]
[1736961161134,0.59717,3349.0,3348.9,0.59716]
[1736961162442,0.5972,3348.9,3348.8,0.59717]
[1736961163939,0.59718,3349.0,3348.9,0.59716]
[1736961164441,1.37635,3349.1,3349.0,0.59716]
[1736961166840,0.7792,3349.1,3349.0,0.59716]
[1736961169651,0.7792,3349.1,3348.6,1.295]
[1736961169835,0.7792,3349.1,3348.5,1.295]
[1736961170040,1.25217,3349.0,3348.9,0.59716]
[1736961170447,1.25217,3349.0,3348.6,2.295]
[1736961170448,0.655,3349.0,3348.6,2.295]
[1736961170647,0.59721,3348.7,3348.6,2.8922]
[1736961170850,0.59721,3348.8,3348.7,0.59719]
[1736961171047,0.6923,3348.9,3348.8,0.59719]
[1736961171347,1.28948,3348.9,3348.8,0.59719]
[1736961172348,1.28948,3348.9,3348.6,1.0]
[1736961172349,0.6923,3348.9,3348.6,1.0]
[1736961172648,0.59721,3348.7,3348.6,1.0]
[1736961173448,1.49305,3348.7,3348.1,1.295]
[1736961173644,0.5973,3348.2,3348.1,1.8923]
[1736961174042,0.5973,3348.2,3348.1,1.295]
[1736961174247,0.59734,3348.0,3347.9,0.59735]
[1736961174442,1.24341,3348.2,3348.1,0.59732]
[1736961174741,0.6461,3348.2,3348.1,0.59732]
[1736961174952,0.59733,3348.1,3348.0,0.59733]
[1736961175140,0.59733,3348.1,3347.8,1.295]
[1736961175141,0.6461,3348.2,3347.8,1.295]
[1736961175346,0.6461,3348.2,3348.1,0.59732]
[1736961175838,0.6461,3348.2,3347.8,3.55687333]
[1736961176041,1.24341,3348.2,3348.1,0.59732]
[1736961176250,0.59733,3348.1,3347.8,3.55687333]
[1736961176752,0.59734,3348.0,3347.9,0.59735]
[1736961177047,0.6461,3348.2,3347.8,3.55687333]
[1736961177438,0.6461,3348.2,3348.1,0.59732]
[1736961179053,1.3749,3348.3,3348.1,2.26187333]
[1736961179251,1.3749,3348.3,3348.2,0.5973]
[1736961179843,1.97218,3348.3,3348.2,0.5973]
[1736961180549,1.3749,3348.3,3348.2,0.5973]
[1736961180939,0.59731,3348.2,3348.1,0.59731]
[1736961181144,1.3749,3348.3,3347.8,3.55687333]
[1736961181145,1.3749,3348.3,3347.8,1.295]
[1736961181448,0.59735,3347.9,3347.8,1.89037]
[1736961181753,0.59737,3347.8,3347.7,0.59738]
[1736961182458,0.59737,3347.9,3347.8,0.59736]
[1736961182952,0.6474,3348.1,3347.6,1.293]
[1736961183148,1.3749,3348.3,3347.8,2.26187333]
[1736961183348,1.3749,3348.3,3348.2,0.5973]
[1736961183651,2.0152,3348.3,3348.2,0.5973]
[1736961184253,2.61248,3348.3,3348.2,0.5973]
[1736961184454,2.0152,3348.3,3348.2,0.5973]
[1736961184951,2.61248,3348.3,3348.2,0.5973]
[1736961186251,2.0152,3348.3,3347.6,2.26187333]
[1736961186446,0.59737,3347.9,3347.8,0.59735]
[1736961187259,0.59733,3348.1,3348.0,0.59732]
[1736961187464,2.0152,3348.3,3347.8,1.49344]
[1736961187759,2.0152,3348.3,3348.2,0.5973]
[1736961188451,1.3108,3348.3,3348.2,0.5973]
[1736961188651,0.6705,3348.3,3348.2,0.5973]
[1736961191852,0.59715,3349.1,3348.7,1.49304]
[1736961192054,0.6608,3349.0,3348.9,0.59718]
[1736961192251,1.25796,3349.0,3348.9,0.59718]
[1736961192453,0.6608,3349.0,3348.9,0.59718]
[1736961192654,1.25796,3349.0,3348.9,0.59718]
[1736961194355,1.49295,3348.9,3348.0,4.5008]
[1736961194558,0.59729,3348.3,3348.2,0.59729]
[1736961195052,1.3849,3348.5,3348.1,2.26187333]
[1736961195256,0.59728,3348.4,3348.3,0.59727]
[1736961196946,1.3849,3348.5,3348.1,2.26187333]
[1736961197156,0.59732,3348.1,3348.0,1.89033]
[1736961197856,0.59732,3348.1,3347.6,3.2078]
[1736961197857,0.59736,3348.0,3347.9,0.59735]
[1736961198060,0.59734,3348.0,3347.9,1.89035]
[1736961198356,0.59734,3348.0,3347.9,1.293]
[1736961198659,0.59734,3348.0,3347.9,1.89035]
[1736961198953,0.59734,3348.1,3348.0,0.59732]
[1736961200155,0.6831,3348.3,3347.9,1.293]
[1736961200358,0.6831,3348.3,3348.2,0.5973]
[1736961200661,3.2078,3348.6,3348.2,0.5973]
[1736961200861,3.2078,3348.6,3348.5,0.59725]
[1736961201162,0.674,3348.8,3348.4,5.46967333]
[1736961201459,0.674,3348.8,3348.7,2.85908333]
[1736961201661,0.674,3348.8,3348.7,4.15208333]
[1736961205866,1.93299,3349.4,3349.3,0.5971]
[1736961206063,2.56719,3349.4,3349.3,0.5971]
[1736961206559,1.9701,3349.4,3349.3,0.5971]
[1736961206756,2.56719,3349.4,3349.3,0.5971]
[1736961207262,1.9701,3349.4,3349.3,0.5971]
[1736961208463,2.56719,3349.4,3349.3,0.5971]
[1736961209163,1.9701,3349.4,3349.3,0.5971]
[1736961209465,2.56719,3349.4,3349.3,0.5971]
[1736961209659,0.59716,3349.1,3348.5,2.26187333]
[1736961209859,3.80496,3349.0,3348.9,1.293]
[1736961210065,0.59718,3348.9,3348.8,0.59719]
[1736961211553,3.80497,3349.0,3348.9,0.59718]
[1736961211758,3.2078,3349.0,3348.9,0.59718]
[1736961212568,1.9701,3349.4,3349.3,0.5971]
[1736961212752,0.6855,3349.4,3349.3,7.35877333]
[1736961212956,0.691,3349.7,3349.6,0.59705]
[1736961213264,0.691,3349.7,3349.6,43.65892333]
[1736961214158,0.691,3349.7,3349.6,2.85892333]
[1736961215264,0.59707,3349.6,3349.5,0.59706]
[1736961215863,0.691,3349.7,3349.3,3.55387333]
[1736961215864,0.59707,3349.5,3349.3,1.292]
[1736961216062,0.691,3349.7,3349.3,1.292]
[1736961216368,0.691,3349.7,3349.4,0.59707]
[1736961216369,0.59708,3349.5,3349.4,0.59707]
[1736961216864,0.691,3349.7,3349.0,2.26187333]
[1736961217199,0.59714,3349.2,3349.1,1.88913]
[1736961217427,0.59712,3349.3,3349.2,0.5971]
[1736961217681,1.28232,3349.3,3349.2,0.5971]
[1736961218372,0.691,3349.7,3349.1,1.292]
[1736961218571,0.6852,3349.6,3349.5,0.59707]
[1736961220972,0.59708,3349.5,3349.4,0.59707]
[1736961221265,0.6852,3349.6,3349.5,0.59707]
[1736961221465,0.691,3349.7,3349.6,0.59705]
[1736961222166,0.6539,3349.9,3349.8,0.59702]
[1736961222965,1.2509,3349.9,3349.8,0.59702]
[1736961223471,0.6539,3349.9,3349.8,1.88902]
[1736961223964,1.2509,3349.9,3349.8,1.88902]
[1736961224171,0.6539,3349.9,3349.8,1.88902]
[1736961224370,1.2509,3349.9,3349.8,1.88902]
[1736961225670,1.2509,3349.9,3349.8,1.292]
[1736961225862,1.2509,3349.9,3349.8,1.88902]
[1736961227863,0.6539,3349.9,3349.8,1.88902]
[1736961229773,0.6539,3349.9,3349.8,2.58802]
[1736961232074,0.6539,3349.9,3349.8,1.88902]
[1736961232462,1.2991,3349.9,3349.4,5.46967333]
[1736961232871,1.2991,3349.9,3349.5,1.291]
[1736961233171,1.89611,3349.9,3349.8,0.59702]
[1736961233870,1.2991,3349.9,3349.8,0.59702]
[1736961234268,0.59702,3349.8,3349.7,0.59702]
[1736961235174,1.2991,3349.9,3349.5,1.291]
[1736961235375,1.89611,3349.9,3349.8,0.59702]
[1736961235572,0.59703,3349.8,3349.7,0.59702]
[1736961235774,0.59705,3349.6,3349.5,1.291]
[1736961236072,0.59707,3349.5,3349.4,7.35775333]
[1736961236281,0.59707,3349.5,3349.4,5.09588]
[1736961236466,0.59706,3349.6,3349.5,0.59705]
[1736961236870,0.59706,3349.6,3349.5,1.88805]
[1736961238181,1.2991,3349.9,3349.5,1.291]
[1736961238374,0.59703,3349.8,3349.7,0.59702]
[1736961238874,0.59703,3349.8,3349.5,1.291]
[1736961238875,1.2991,3349.9,3349.5,1.291]
[1736961239179,0.6539,3349.9,3349.8,0.59702]
[1736961239772,0.6539,3349.9,3349.8,41.39702]
[1736961240582,0.59703,3349.8,3349.7,0.59702]
[1736961240775,1.94523,3349.8,3349.7,0.59702]
[1736961240976,1.3482,3349.8,3349.7,43.65889333]
[1736961241481,1.94522,3349.8,3349.7,0.59702]
[1736961241983,1.3482,3349.8,3349.7,0.59702]
[1736961243487,1.94522,3349.8,3349.7,0.59702]
[1736961243786,1.3482,3349.8,3349.7,0.59702]
[1736961245989,0.6539,3349.9,3349.8,0.59702]
[1736961246688,0.6539,3349.9,3349.8,1.27022]
[1736961247083,0.6539,3349.9,3349.8,4.47802]
[1736961247389,1.3277,3350.3,3349.8,4.47802]
[1736961247690,0.6336,3350.2,3350.1,0.59696]
[1736961249182,3.2078,3351.1,3350.0,2.26187333]
[1736961249384,0.59682,3351.0,3350.9,0.59681]
[1736961249583,3.2078,3351.1,3350.8,2.26187333]
[1736961249890,0.59682,3350.9,3350.8,0.59683]
[1736961250083,0.59684,3350.8,3350.7,1.29]
[1736961251084,0.59684,3350.8,3350.5,3.2078]
[1736961251085,0.59687,3350.6,3350.5,1.29]
[1736961251891,1.49215,3350.7,3350.1,0.59695]
[1736961252091,0.59693,3350.3,3350.2,1.29]
[1736961252588,0.59694,3350.2,3350.1,1.29]
[1736961253097,0.59703,3349.7,3349.6,1.88704]
[1736961253392,0.59704,3349.7,3349.6,1.29]
[1736961253797,3.2078,3350.0,3349.6,1.29]
[1736961253988,3.2078,3350.0,3349.7,0.59703]
[1736961254188,0.59702,3349.8,3349.7,0.59703]
[1736961254599,3.80479,3350.0,3349.6,3.55187333]
[1736961254784,0.59699,3350.0,3349.8,0.597]
[1736961254992,0.59699,3350.0,3349.9,0.597]
[1736961255590,0.59698,3350.0,3349.6,3.55187333]
[1736961255889,0.597,3350.0,3349.8,0.597]
[1736961256191,3.2078,3350.1,3349.9,0.59698]
[1736961256396,0.59698,3350.0,3349.9,0.59698]
[1736961257297,3.2078,3350.1,3349.6,3.55187333]
[1736961257504,0.59703,3349.7,3349.6,1.29]
[1736961259108,0.59703,3349.7,3349.6,1.88704]
[1736961259308,3.2078,3350.1,3349.6,1.29]
[1736961259614,3.2078,3350.1,3349.7,2.26187333]
[1736961259808,0.597,3349.9,3349.8,0.59701]
[1736961260013,3.2078,3350.1,3349.7,2.26187333]
[1736961260206,3.80477,3350.1,3350.0,0.59698]
[1736961261112,3.2078,3350.1,3349.7,2.26187333]
[1736961261310,0.59701,3349.9,3349.8,0.59701]
[1736961261505,0.59703,3349.8,3349.7,0.59703]
[1736961261699,3.2078,3350.1,3349.6,1.29]
[1736961261906,2.1358,3349.7,3349.6,1.88705]
[1736961262611,1.4087,3349.7,3349.6,1.88705]
[1736961262914,0.7037,3349.7,3349.6,1.88705]
[1736961267206,0.7037,3349.7,3349.6,1.29]
[1736961267512,1.30073,3349.7,3349.6,1.29]
[1736961268910,1.30073,3349.7,3349.6,1.88705]
[1736961269211,0.7037,3349.7,3349.6,1.88705]
[1736961270104,3.2078,3350.1,3350.0,0.59698]
[1736961270306,4.51016,3350.1,3350.0,2.85885333]
[1736961270506,0.59699,3350.0,3349.9,0.59699]
[1736961270814,1.32199,3350.0,3349.9,0.59699]
[1736961271011,0.59702,3349.8,3349.7,0.59702]
[1736961271311,0.725,3350.0,3349.6,1.29]
[1736961271503,0.59703,3349.7,3349.6,1.88704]
[1736961271914,0.59703,3349.8,3349.7,0.59702]
[1736961272407,0.59701,3349.9,3349.8,0.59701]
[1736961272908,0.725,3350.0,3349.7,0.59703]
[1736961272909,0.59703,3349.8,3349.7,0.59703]
[1736961273110,0.59703,3349.8,3349.6,1.29]
[1736961273307,0.725,3350.0,3349.6,1.29]
[1736961273508,0.59701,3349.9,3349.8,0.59701]
[1736961273915,0.59703,3349.7,3349.6,1.88705]
[1736961274115,0.59703,3349.7,3349.6,1.29]
[1736961274811,0.59703,3349.7,3349.6,1.88705]
[1736961275019,0.59703,3349.7,3349.6,1.29]
[1736961275707,3.2078,3349.7,3349.2,0.59711]
[1736961275905,0.59711,3349.3,3349.2,0.59711]
[1736961276110,0.5971,3349.4,3349.3,0.5971]
[1736961276311,0.59711,3349.3,3349.2,0.59711]
[1736961277218,1.3554,3349.5,3349.1,3.54987333]
[1736961277420,1.3554,3349.5,3349.1,1.288]
[1736961277615,0.59712,3349.2,3349.1,1.88513]
[1736961278522,0.59712,3349.3,3349.2,0.59712]
[1736961278720,0.59711,3349.3,3349.2,0.59712]
[1736961279223,0.5971,3349.4,3349.3,0.59709]
[1736961279723,1.3554,3349.5,3349.4,0.59709]
[1736961280026,0.6674,3349.5,3349.4,2.85896333]
[1736961282825,0.6669,3349.9,3349.8,0.59702]
[1736961283124,0.6669,3349.9,3349.8,1.88502]
[1736961283312,0.7204,3350.1,3349.8,1.88502]
[1736961283313,0.7204,3350.1,3350.0,0.59698]
[1736961284427,1.4178,3350.1,3350.0,0.59698]
[1736961285725,1.4178,3350.1,3350.0,2.85885333]
[1736961286525,1.4178,3350.1,3350.0,0.59698]
[1736961287422,2.01476,3350.1,3350.0,0.59698]
[1736961287623,1.42019337,3350.1,3349.8,1.288]
[1736961287820,0.59698,3350.0,3349.9,0.59699]
[1736961289027,0.597,3349.9,3349.8,1.88501]
[1736961289425,6.12043337,3350.1,3349.5,1.88506]
[1736961289628,0.59703,3349.8,3349.6,0.59705]
[1736961289829,3.32272887,3350.0,3349.5,1.288]
[1736961290320,0.59705,3349.6,3349.5,1.88506]
[1736961290627,0.59705,3349.6,3349.5,1.288]
[1736961290821,0.59705,3349.6,3349.5,1.88507]
[1736961291128,0.59705,3349.6,3349.5,1.288]
[1736961291422,0.59705,3349.6,3349.5,1.88507]
[1736961291628,0.59705,3349.6,3349.5,1.288]
[1736961292723,4.81522887,3350.0,3349.1,6.13627333]
[1736961292724,0.59708,3349.5,3349.4,0.59708]
[1736961293228,0.59707,3349.5,3349.4,0.59708]
[1736961293422,2.00256,3349.6,3349.2,1.288]
[1736961293728,1.27447,3349.5,3349.4,0.59709]
[1736961294027,0.59709,3349.4,3349.2,1.288]
[1736961294225,0.59709,3349.4,3349.3,0.5971]
[1736961295231,0.6774,3349.5,3349.2,1.288]
[1736961295529,1.27448,3349.5,3349.4,0.59709]
[1736961296028,0.5971,3349.4,3349.2,0.59711]
[1736961296325,0.59709,3349.4,3349.1,1.288]